[Event "Live Chess"]
[Site "Chess.com"]
[Date "2023.05.20"]
[Round "-"]
[White "zdanevych"]
[Black "Ocelot32"]
[Result "1-0"]
[WhiteElo "1519"]
[BlackElo "1386"]
[TimeControl "300"]
[EndTime "12:36:34 PDT"]
[Termination "zdanevych won by checkmate"]

1. d4 {[%clk 0:04:58.8]} 1... Nf6 {[%clk 0:04:58]} 2. c4 {[%clk 0:04:57.4]} 2...
e6 {[%clk 0:04:56.6]} 3. Nc3 {[%clk 0:04:56.6]} 3... d5 {[%clk 0:04:55.3]} 4.
cxd5 {[%clk 0:04:54.7]} 4... exd5 {[%clk 0:04:53.1]} 5. Nf3 {[%clk 0:04:53.3]}
5... Be7 {[%clk 0:04:49.9]} 6. h3 {[%clk 0:04:52.6]} 6... O-O {[%clk 0:04:48.4]}
7. Bf4 {[%clk 0:04:52.1]} 7... c6 {[%clk 0:04:46.7]} 8. e3 {[%clk 0:04:51.6]}
8... Bd6 {[%clk 0:04:43.7]} 9. Bg5 {[%clk 0:04:48.9]} 9... Be7 {[%clk 0:04:42]}
10. Bd3 {[%clk 0:04:45]} 10... Nbd7 {[%clk 0:04:37.5]} 11. O-O {[%clk
0:04:43.1]} 11... Re8 {[%clk 0:04:36.2]} 12. Rc1 {[%clk 0:04:38.7]} 12... h6
{[%clk 0:04:35.1]} 13. Bh4 {[%clk 0:04:36.8]} 13... Qc7 {[%clk 0:04:21.5]} 14.
Bb1 {[%clk 0:04:28.5]} 14... Bd6 {[%clk 0:04:13.1]} 15. Qc2 {[%clk 0:04:23.4]}
15... Qb8 {[%clk 0:04:10.7]} 16. Ne2 {[%clk 0:04:14.7]} 16... Ne4 {[%clk
0:04:06.3]} 17. Nd2 {[%clk 0:04:07.7]} 17... Nxd2 {[%clk 0:04:03.4]} 18. Qh7+
{[%clk 0:04:04.6]} 18... Kf8 {[%clk 0:04:01]} 19. Qh8# {[%clk 0:04:04.5]} 1-0

[Event "Live Chess"]
[Site "Chess.com"]
[Date "2023.05.20"]
[Round "-"]
[White "Delacorta"]
[Black "diana21strabt"]
[Result "1-0"]
[WhiteElo "1439"]
[BlackElo "1661"]
[TimeControl "300"]
[EndTime "12:36:37 PDT"]
[Termination "Delacorta won by resignation"]

1. d4 {[%clk 0:04:58]} 1... Nf6 {[%clk 0:04:58.8]} 2. Nf3 {[%clk 0:04:57.1]}
2... g6 {[%clk 0:04:57.8]} 3. h4 {[%clk 0:04:54.3]} 3... d5 {[%clk 0:04:54.3]}
4. Bg5 {[%clk 0:04:45.3]} 4... h6 {[%clk 0:04:52.5]} 5. Bxf6 {[%clk 0:04:41.1]}
5... exf6 {[%clk 0:04:51.4]} 6. h5 {[%clk 0:04:40.2]} 6... g5 {[%clk 0:04:50.4]}
7. e3 {[%clk 0:04:29.3]} 7... Nc6 {[%clk 0:04:48.1]} 8. Bb5 {[%clk 0:04:27.6]}
8... Bd7 {[%clk 0:04:45.8]} 9. Qe2 {[%clk 0:04:25.4]} 9... a6 {[%clk 0:04:44.2]}
10. Ba4 {[%clk 0:04:22.2]} 10... b5 {[%clk 0:04:41.9]} 11. Bb3 {[%clk
0:04:20.8]} 11... Be6 {[%clk 0:04:39]} 12. c3 {[%clk 0:04:13.6]} 12... Bd6
{[%clk 0:04:20.8]} 13. Nbd2 {[%clk 0:04:09.9]} 13... Rb8 {[%clk 0:04:10.5]} 14.
a4 {[%clk 0:03:50.1]} 14... b4 {[%clk 0:04:03.8]} 15. c4 {[%clk 0:03:34.7]}
15... dxc4 {[%clk 0:03:48.6]} 16. Bxc4 {[%clk 0:03:31.5]} 16... Bxc4 {[%clk
0:03:46.4]} 17. Nxc4 {[%clk 0:03:30.4]} 17... a5 {[%clk 0:03:42.4]} 18. Ncd2
{[%clk 0:03:16]} 18... Ne7 {[%clk 0:03:32.7]} 19. e4 {[%clk 0:02:59]} 19... Bf4
{[%clk 0:03:17.4]} 20. Nc4 {[%clk 0:02:57.4]} 20... Nc6 {[%clk 0:03:12.9]} 21.
g3 {[%clk 0:02:46.1]} 21... Bd6 {[%clk 0:02:59.4]} 22. Nxd6+ {[%clk 0:02:38.1]}
22... Qxd6 {[%clk 0:02:56.4]} 23. d5 {[%clk 0:02:20.7]} 23... Ne5 {[%clk
0:02:53]} 24. O-O {[%clk 0:02:13.4]} 24... O-O {[%clk 0:02:37.4]} 25. Nd4 {[%clk
0:02:11.7]} 25... g4 {[%clk 0:02:19.7]} 26. Nf5 {[%clk 0:02:07.5]} 26... Nf3+
{[%clk 0:02:13.5]} 27. Kg2 {[%clk 0:01:59.8]} 27... Qe5 {[%clk 0:02:06.6]} 28.
Nxh6+ {[%clk 0:01:57.6]} 28... Kh7 {[%clk 0:02:05.5]} 29. Nxg4 {[%clk
0:01:55.5]} 29... Qxb2 {[%clk 0:01:49.8]} 30. Qxb2 {[%clk 0:01:52.5]} 1-0

[Event "Live Chess"]
[Site "Chess.com"]
[Date "2023.05.20"]
[Round "-"]
[White "Ayush_prahlad_Gupta"]
[Black "Demyan7777"]
[Result "1-0"]
[WhiteElo "1791"]
[BlackElo "1661"]
[TimeControl "300"]
[EndTime "12:36:49 PDT"]
[Termination "Ayush_prahlad_Gupta won on time"]

1. e4 {[%clk 0:04:51.1]} 1... c5 {[%clk 0:04:58.7]} 2. Nc3 {[%clk 0:04:44.1]}
2... d6 {[%clk 0:04:56.2]} 3. Bc4 {[%clk 0:04:40.9]} 3... a6 {[%clk 0:04:54.5]}
4. a4 {[%clk 0:04:38.5]} 4... e6 {[%clk 0:04:52.9]} 5. Nf3 {[%clk 0:04:35.1]}
5... Nf6 {[%clk 0:04:48]} 6. d4 {[%clk 0:04:32.6]} 6... cxd4 {[%clk 0:04:46]} 7.
Nxd4 {[%clk 0:04:32.5]} 7... Be7 {[%clk 0:04:44.2]} 8. O-O {[%clk 0:04:29.2]}
8... Nc6 {[%clk 0:04:41.7]} 9. Nxc6 {[%clk 0:04:26.8]} 9... bxc6 {[%clk
0:04:40]} 10. f4 {[%clk 0:04:23.9]} 10... O-O {[%clk 0:04:35.5]} 11. Qf3 {[%clk
0:04:15.4]} 11... d5 {[%clk 0:04:28.9]} 12. exd5 {[%clk 0:04:12.8]} 12... cxd5
{[%clk 0:04:28]} 13. Bd3 {[%clk 0:04:11.4]} 13... Bb7 {[%clk 0:04:26.1]} 14. Qg3
{[%clk 0:04:04]} 14... d4 {[%clk 0:04:23.7]} 15. Ne2 {[%clk 0:04:01.6]} 15...
Qd5 {[%clk 0:04:20.5]} 16. f5 {[%clk 0:03:57.9]} 16... Bd6 {[%clk 0:04:10.6]}
17. Nf4 {[%clk 0:03:55.6]} 17... Bxf4 {[%clk 0:04:08.2]} 18. Bxf4 {[%clk
0:03:55.2]} 18... Nh5 {[%clk 0:03:58.5]} 19. Qg5 {[%clk 0:03:49]} 19... Nxf4
{[%clk 0:03:56]} 20. Rxf4 {[%clk 0:03:46.6]} 20... f6 {[%clk 0:03:42.8]} 21. Qg4
{[%clk 0:03:41.7]} 21... e5 {[%clk 0:03:40.1]} 22. Be4 {[%clk 0:03:33.7]} 22...
Qc5 {[%clk 0:03:35.2]} 23. Bxb7 {[%clk 0:03:33.6]} 23... exf4 {[%clk 0:03:32]}
24. Bxa8 {[%clk 0:03:31.8]} 24... Rxa8 {[%clk 0:03:30.1]} 25. Qxf4 {[%clk
0:03:30.6]} 25... d3+ {[%clk 0:03:29.2]} 26. Kh1 {[%clk 0:03:28.3]} 26... dxc2
{[%clk 0:03:27.7]} 27. Rc1 {[%clk 0:03:27.5]} 27... Rd8 {[%clk 0:03:25.6]} 28.
Qf3 {[%clk 0:03:18.3]} 28... Qc4 {[%clk 0:03:20.1]} 29. h3 {[%clk 0:03:14.8]}
29... Qxa4 {[%clk 0:02:57.4]} 30. b3 {[%clk 0:03:07.1]} 30... Qa2 {[%clk
0:02:53.4]} 31. Qe2 {[%clk 0:02:57.9]} 31... Qxb3 {[%clk 0:02:14.5]} 32. Rxc2
{[%clk 0:02:54.4]} 32... h6 {[%clk 0:02:06.9]} 33. Rc7 {[%clk 0:02:46.5]} 33...
Qb1+ {[%clk 0:01:54.6]} 34. Kh2 {[%clk 0:02:42.7]} 34... Qxf5 {[%clk 0:01:44.9]}
35. Ra7 {[%clk 0:02:08.6]} 35... Qf4+ {[%clk 0:01:39.6]} 36. g3 {[%clk
0:02:02.7]} 36... Rd2 {[%clk 0:01:31.1]} 37. gxf4 {[%clk 0:01:52.8]} 37... Rxe2+
{[%clk 0:01:29.9]} 38. Kg3 {[%clk 0:01:50.9]} 38... Ra2 {[%clk 0:01:28.8]} 39.
Kg4 {[%clk 0:01:42.6]} 39... Kh7 {[%clk 0:01:25.5]} 40. Kf5 {[%clk 0:01:16.1]}
40... a5 {[%clk 0:01:05.7]} 41. Ke6 {[%clk 0:01:12.3]} 41... Kg6 {[%clk
0:00:56.8]} 42. h4 {[%clk 0:01:03.4]} 42... Re2+ {[%clk 0:00:54]} 43. Kd5 {[%clk
0:01:00.6]} 43... Rh2 {[%clk 0:00:40.6]} 44. Rxa5 {[%clk 0:00:57.4]} 44... Rxh4
{[%clk 0:00:38.7]} 45. Ke4 {[%clk 0:00:56.7]} 45... Rh2 {[%clk 0:00:35.5]} 46.
Ra1 {[%clk 0:00:50.2]} 46... Re2+ {[%clk 0:00:34.4]} 47. Kf3 {[%clk 0:00:48.3]}
47... Re8 {[%clk 0:00:32.2]} 48. Rg1+ {[%clk 0:00:43.8]} 48... Kf7 {[%clk
0:00:30.7]} 49. f5 {[%clk 0:00:41.4]} 49... Re5 {[%clk 0:00:28.8]} 50. Kf4
{[%clk 0:00:39.5]} 50... Ra5 {[%clk 0:00:27.4]} 51. Rb1 {[%clk 0:00:37.7]} 51...
Ra4+ {[%clk 0:00:26.2]} 52. Kg3 {[%clk 0:00:36.9]} 52... Kg8 {[%clk 0:00:22.7]}
53. Rb7 {[%clk 0:00:33.5]} 53... Kh7 {[%clk 0:00:20.8]} 54. Kf3 {[%clk 0:00:32]}
54... h5 {[%clk 0:00:20.4]} 55. Kg3 {[%clk 0:00:30.7]} 55... Kh6 {[%clk
0:00:20]} 56. Kf3 {[%clk 0:00:29.5]} 56... Rg4 {[%clk 0:00:19.6]} 57. Rb8 {[%clk
0:00:28.2]} 57... Kg5 {[%clk 0:00:18.5]} 58. Rb5 {[%clk 0:00:25.9]} 58... Rf4+
{[%clk 0:00:17.2]} 59. Kg3 {[%clk 0:00:25]} 59... Rxf5 {[%clk 0:00:16.8]} 60.
Rb8 {[%clk 0:00:24]} 60... Kg6 {[%clk 0:00:15.9]} 61. Kh4 {[%clk 0:00:21.8]}
61... Rf4+ {[%clk 0:00:14.6]} 62. Kg3 {[%clk 0:00:21.7]} 62... Rg4+ {[%clk
0:00:14]} 63. Kh3 {[%clk 0:00:20.4]} 63... f5 {[%clk 0:00:13.4]} 64. Rh8 {[%clk
0:00:19.2]} 64... Kg5 {[%clk 0:00:12.2]} 65. Rc8 {[%clk 0:00:19.1]} 65... g6
{[%clk 0:00:11.7]} 66. Rc5 {[%clk 0:00:18]} 66... Kh6 {[%clk 0:00:10.2]} 67. Rc7
{[%clk 0:00:16.8]} 67... f4 {[%clk 0:00:09.5]} 68. Rc8 {[%clk 0:00:16.7]} 68...
f3 {[%clk 0:00:08.4]} 69. Rc3 {[%clk 0:00:15.5]} 69... Rf4 {[%clk 0:00:07.6]}
70. Kg3 {[%clk 0:00:14.3]} 70... Rf7 {[%clk 0:00:06.7]} 71. Rc1 {[%clk
0:00:13.2]} 71... f2 {[%clk 0:00:05.6]} 72. Rf1 {[%clk 0:00:13.1]} 72... Kg5
{[%clk 0:00:04.8]} 73. Kh3 {[%clk 0:00:12.8]} 73... h4 {[%clk 0:00:03.8]} 74.
Kg2 {[%clk 0:00:12.5]} 74... Rf4 {[%clk 0:00:03]} 75. Kh3 {[%clk 0:00:12.4]}
75... Rf5 {[%clk 0:00:02.4]} 76. Kh2 {[%clk 0:00:11.8]} 76... Kg4 {[%clk
0:00:02]} 77. Kg2 {[%clk 0:00:10.7]} 77... h3+ {[%clk 0:00:01.6]} 78. Kh1 {[%clk
0:00:10.6]} 78... Kg3 {[%clk 0:00:01]} 79. Re1 {[%clk 0:00:07.3]} 1-0

[Event "Live Chess"]
[Site "Chess.com"]
[Date "2023.05.20"]
[Round "-"]
[White "Ferrarifan27"]
[Black "MrBlond89"]
[Result "1-0"]
[WhiteElo "2071"]
[BlackElo "1305"]
[TimeControl "300"]
[EndTime "12:36:55 PDT"]
[Termination "Ferrarifan27 won on time"]

1. e4 {[%clk 0:04:59.2]} 1... e5 {[%clk 0:04:58.6]} 2. Nf3 {[%clk 0:04:57.9]}
2... Nc6 {[%clk 0:04:57.5]} 3. Bb5 {[%clk 0:04:56.8]} 3... f5 {[%clk 0:04:56.1]}
4. d3 {[%clk 0:04:55.1]} 4... Nf6 {[%clk 0:04:54.3]} 5. exf5 {[%clk 0:04:50.6]}
5... Nd4 {[%clk 0:04:50.6]} 6. Nxd4 {[%clk 0:04:48.3]} 6... exd4 {[%clk
0:04:49.5]} 7. O-O {[%clk 0:04:47.5]} 7... c6 {[%clk 0:04:47.3]} 8. Bc4 {[%clk
0:04:45.5]} 8... d5 {[%clk 0:04:46.7]} 9. Bb3 {[%clk 0:04:44.7]} 9... Bxf5
{[%clk 0:04:44.5]} 10. Re1+ {[%clk 0:04:43.8]} 10... Be7 {[%clk 0:04:43]} 11.
Bf4 {[%clk 0:04:41.8]} 11... O-O {[%clk 0:04:40.7]} 12. Nd2 {[%clk 0:04:40.2]}
12... a5 {[%clk 0:04:22.2]} 13. a4 {[%clk 0:04:37.9]} 13... Bb4 {[%clk
0:04:19.7]} 14. Be5 {[%clk 0:04:31.5]} 14... Ng4 {[%clk 0:04:08.7]} 15. Bxd4
{[%clk 0:04:29]} 15... c5 {[%clk 0:04:05.9]} 16. Be3 {[%clk 0:04:24.4]} 16...
Qh4 {[%clk 0:03:49]} 17. Nf3 {[%clk 0:04:21.1]} 17... Qf6 {[%clk 0:03:38.1]} 18.
c3 {[%clk 0:04:19.6]} 18... Nxe3 {[%clk 0:03:24.5]} 19. Rxe3 {[%clk 0:04:15.1]}
19... Bg4 {[%clk 0:03:18.8]} 20. Bxd5+ {[%clk 0:04:09.3]} 20... Kh8 {[%clk
0:03:16.5]} 21. cxb4 {[%clk 0:04:08.3]} 21... Rad8 {[%clk 0:03:13.8]} 22. Bxb7
{[%clk 0:04:02.2]} 22... axb4 {[%clk 0:03:04.4]} 23. a5 {[%clk 0:03:57.5]} 23...
c4 {[%clk 0:03:00]} 24. a6 {[%clk 0:03:55.1]} 24... Bc8 {[%clk 0:02:35.4]} 25.
Bxc8 {[%clk 0:03:50.7]} 25... Rxc8 {[%clk 0:02:31.3]} 26. dxc4 {[%clk
0:03:49.9]} 26... Rxc4 {[%clk 0:02:24.2]} 27. a7 {[%clk 0:03:48.4]} 27... Ra8
{[%clk 0:01:39.6]} 28. Rd3 {[%clk 0:03:40.9]} 28... Rcc8 {[%clk 0:01:26.6]} 29.
b3 {[%clk 0:03:35.6]} 29... Rc3 {[%clk 0:01:04.1]} 30. Rxc3 {[%clk 0:03:29.1]}
30... Qxc3 {[%clk 0:01:02.1]} 31. Nd4 {[%clk 0:03:13.3]} 31... h6 {[%clk
0:00:41.3]} 32. Nb5 {[%clk 0:03:06.9]} 32... Qc5 {[%clk 0:00:26.1]} 33. Qd3
{[%clk 0:03:02.1]} 33... Rf8 {[%clk 0:00:14.1]} 34. a8=Q {[%clk 0:02:53.1]}
34... Qxf2+ {[%clk 0:00:08.8]} 35. Kh1 {[%clk 0:02:51.6]} 35... Kg8 {[%clk
0:00:02.6]} 36. Qxf8+ {[%clk 0:02:41.1]} 36... Kxf8 {[%clk 0:00:00.8]} 37. Rf1
{[%clk 0:02:38.1]} 1-0

[Event "Live Chess"]
[Site "Chess.com"]
[Date "2023.05.20"]
[Round "-"]
[White "apl_trainer"]
[Black "hturner40"]
[Result "1-0"]
[WhiteElo "1668"]
[BlackElo "1779"]
[TimeControl "300"]
[EndTime "12:37:11 PDT"]
[Termination "apl_trainer won by checkmate"]

1. d4 {[%clk 0:04:57.8]} 1... g6 {[%clk 0:04:57.5]} 2. c4 {[%clk 0:04:55.9]}
2... Nf6 {[%clk 0:04:55.5]} 3. Nc3 {[%clk 0:04:54.7]} 3... d5 {[%clk 0:04:53]}
4. cxd5 {[%clk 0:04:53.6]} 4... Nxd5 {[%clk 0:04:50.7]} 5. e4 {[%clk 0:04:52.7]}
5... Nxc3 {[%clk 0:04:48.3]} 6. bxc3 {[%clk 0:04:51.9]} 6... Bg7 {[%clk
0:04:47.3]} 7. Qa4+ {[%clk 0:04:50.2]} 7... Bd7 {[%clk 0:04:42]} 8. Qa3 {[%clk
0:04:48]} 8... O-O {[%clk 0:04:36.8]} 9. Nf3 {[%clk 0:04:45.7]} 9... c5 {[%clk
0:04:16.1]} 10. Qxc5 {[%clk 0:04:37.5]} 10... Na6 {[%clk 0:04:13.3]} 11. Qa3
{[%clk 0:04:34.9]} 11... Rc8 {[%clk 0:03:57.4]} 12. Bg5 {[%clk 0:04:31.3]} 12...
Re8 {[%clk 0:03:32.6]} 13. Be2 {[%clk 0:04:23.9]} 13... Bc6 {[%clk 0:03:24.9]}
14. e5 {[%clk 0:04:04.1]} 14... f6 {[%clk 0:03:10.2]} 15. Be3 {[%clk 0:03:52]}
15... fxe5 {[%clk 0:02:53]} 16. Nxe5 {[%clk 0:03:45.5]} 16... Bxg2 {[%clk
0:02:42.5]} 17. Rg1 {[%clk 0:03:43.8]} 17... Bd5 {[%clk 0:02:34.4]} 18. h4
{[%clk 0:03:39.8]} 18... Nc5 {[%clk 0:02:01.7]} 19. dxc5 {[%clk 0:03:21.6]}
19... Bxe5 {[%clk 0:01:58.1]} 20. h5 {[%clk 0:03:20.7]} 20... Be4 {[%clk
0:01:50.4]} 21. hxg6 {[%clk 0:03:13]} 21... hxg6 {[%clk 0:01:45.3]} 22. Rd1
{[%clk 0:03:02.2]} 22... Qc7 {[%clk 0:01:38.1]} 23. Bd3 {[%clk 0:02:50.8]} 23...
Bh2 {[%clk 0:01:33.4]} 24. Rg4 {[%clk 0:02:35.2]} 24... Bxd3 {[%clk 0:00:57.4]}
25. Rxd3 {[%clk 0:02:32.9]} 25... Qc6 {[%clk 0:00:56.5]} 26. Qb3+ {[%clk
0:02:23.3]} 26... e6 {[%clk 0:00:52.5]} 27. Qc2 {[%clk 0:01:51.2]} 27... Kf7
{[%clk 0:00:31]} 28. Rd7+ {[%clk 0:01:23.6]} 28... Qxd7 {[%clk 0:00:24.4]} 29.
Qxg6+ {[%clk 0:01:21.8]} 29... Kf8 {[%clk 0:00:10.9]} 30. Qg8+ {[%clk
0:01:13.9]} 30... Ke7 {[%clk 0:00:08.8]} 31. Bg5# {[%clk 0:01:11]} 1-0

[Event "Live Chess"]
[Site "Chess.com"]
[Date "2023.05.20"]
[Round "-"]
[White "SavagePawn7"]
[Black "domrobson"]
[Result "0-1"]
[WhiteElo "792"]
[BlackElo "1719"]
[TimeControl "300"]
[EndTime "12:37:30 PDT"]
[Termination "domrobson won by resignation"]

1. e4 {[%clk 0:04:57.8]} 1... e5 {[%clk 0:04:59.4]} 2. d4 {[%clk 0:04:56.3]}
2... exd4 {[%clk 0:04:58.1]} 3. c3 {[%clk 0:04:54.1]} 3... d5 {[%clk 0:04:55.5]}
4. exd5 {[%clk 0:04:47.2]} 4... Qxd5 {[%clk 0:04:53.5]} 5. Qf3 {[%clk 0:04:32]}
5... Qe6+ {[%clk 0:04:48.5]} 6. Be2 {[%clk 0:04:23.4]} 6... Nc6 {[%clk
0:04:46.7]} 7. Nh3 {[%clk 0:04:14.6]} 7... dxc3 {[%clk 0:04:42.5]} 8. Nxc3
{[%clk 0:04:11.7]} 8... Bb4 {[%clk 0:04:41.6]} 9. Bd2 {[%clk 0:03:51.2]} 9...
Nd4 {[%clk 0:04:39.3]} 10. Qd3 {[%clk 0:03:30.5]} 10... Bxc3 {[%clk 0:04:30.6]}
11. Bxc3 {[%clk 0:03:25.1]} 11... Nxe2 {[%clk 0:04:29.6]} 12. Qxe2 {[%clk
0:03:22.9]} 12... Nf6 {[%clk 0:04:27.6]} 13. Nf4 {[%clk 0:03:18.8]} 13... Qxe2+
{[%clk 0:04:25.7]} 14. Nxe2 {[%clk 0:03:17.5]} 14... O-O {[%clk 0:04:22.2]} 15.
Bxf6 {[%clk 0:03:14.6]} 15... gxf6 {[%clk 0:04:22.1]} 16. O-O {[%clk 0:03:12.9]}
16... Be6 {[%clk 0:04:19.5]} 17. b3 {[%clk 0:03:10.5]} 17... Rad8 {[%clk
0:04:17.3]} 18. Rad1 {[%clk 0:03:07.6]} 18... c5 {[%clk 0:04:06.5]} 19. Nf4
{[%clk 0:03:05.6]} 19... Kg7 {[%clk 0:04:02.6]} 20. Nxe6+ {[%clk 0:02:46]} 20...
fxe6 {[%clk 0:04:01.2]} 21. Rfe1 {[%clk 0:02:41.7]} 21... e5 {[%clk 0:03:58.6]}
22. g3 {[%clk 0:02:37.9]} 22... Rd4 {[%clk 0:03:57.2]} 23. f4 {[%clk 0:02:20.4]}
23... Rfd8 {[%clk 0:03:50.5]} 24. Rxd4 {[%clk 0:02:12.4]} 24... exd4 {[%clk
0:03:48.9]} 25. Re7+ {[%clk 0:02:07.3]} 25... Kg6 {[%clk 0:03:47.4]} 26. Rxb7
{[%clk 0:01:58.5]} 26... d3 {[%clk 0:03:46.6]} 27. Kf2 {[%clk 0:01:53.7]} 27...
d2 {[%clk 0:03:46.2]} 0-1

[Event "Live Chess"]
[Site "Chess.com"]
[Date "2023.05.20"]
[Round "-"]
[White "JackRudd"]
[Black "vovanada"]
[Result "1-0"]
[WhiteElo "2460"]
[BlackElo "825"]
[TimeControl "300"]
[EndTime "12:37:32 PDT"]
[Termination "JackRudd won by checkmate"]

1. e4 {[%clk 0:04:58.2]} 1... e5 {[%clk 0:04:58.2]} 2. Nf3 {[%clk 0:04:56.9]}
2... Nc6 {[%clk 0:04:57.4]} 3. Bc4 {[%clk 0:04:55.4]} 3... Nf6 {[%clk
0:04:54.2]} 4. Ng5 {[%clk 0:04:52.2]} 4... d5 {[%clk 0:04:52.4]} 5. exd5 {[%clk
0:04:51.3]} 5... Nxd5 {[%clk 0:04:47.6]} 6. d4 {[%clk 0:04:50.1]} 6... Na5
{[%clk 0:04:45.3]} 7. Qf3 {[%clk 0:04:47.1]} 7... f6 {[%clk 0:04:40.7]} 8. Bxd5
{[%clk 0:04:44.8]} 8... Qe7 {[%clk 0:03:52.7]} 9. Nf7 {[%clk 0:04:40.6]} 9...
Rg8 {[%clk 0:03:51.1]} 10. O-O {[%clk 0:04:39.1]} 10... c6 {[%clk 0:03:48.5]}
11. Nd6+ {[%clk 0:04:34.5]} 11... Qxd6 {[%clk 0:03:43.5]} 12. Bxg8 {[%clk
0:04:33.6]} 12... Qxd4 {[%clk 0:03:38.4]} 13. Rd1 {[%clk 0:04:28.7]} 13... Qc5
{[%clk 0:03:19]} 14. Qh5+ {[%clk 0:04:26.1]} 14... g6 {[%clk 0:03:16.4]} 15.
Qxh7 {[%clk 0:04:25.1]} 15... Qe7 {[%clk 0:02:55.8]} 16. Qxg6+ {[%clk
0:04:23.5]} 16... Qf7 {[%clk 0:02:51.2]} 17. Qxf7# {[%clk 0:04:22.5]} 1-0

[Event "Live Chess"]
[Site "Chess.com"]
[Date "2023.05.20"]
[Round "-"]
[White "Conradical12"]
[Black "HoarseyHorsey"]
[Result "1-0"]
[WhiteElo "1575"]
[BlackElo "1386"]
[TimeControl "300"]
[EndTime "12:37:38 PDT"]
[Termination "Conradical12 won by resignation"]

1. e4 {[%clk 0:04:56.9]} 1... c5 {[%clk 0:04:58.7]} 2. b4 {[%clk 0:04:54.3]}
2... e6 {[%clk 0:04:55.7]} 3. a3 {[%clk 0:04:50.5]} 3... Nc6 {[%clk 0:04:53.8]}
4. Nf3 {[%clk 0:04:46.5]} 4... cxb4 {[%clk 0:04:51.7]} 5. axb4 {[%clk 0:04:44]}
5... Bxb4 {[%clk 0:04:49.4]} 6. Bb2 {[%clk 0:04:43]} 6... f6 {[%clk 0:04:44.8]}
7. Ng5 {[%clk 0:04:34.2]} 7... h6 {[%clk 0:04:26.2]} 8. Qh5+ {[%clk 0:04:31.7]}
8... Ke7 {[%clk 0:04:23.9]} 9. Qf7+ {[%clk 0:04:30.2]} 9... Kd6 {[%clk
0:04:19.7]} 10. Qxg7 {[%clk 0:04:29.3]} 10... Nge7 {[%clk 0:04:17.6]} 11. Nf7+
{[%clk 0:04:28.4]} 11... Kc7 {[%clk 0:04:16.3]} 12. Nxd8 {[%clk 0:04:27.1]} 1-0

[Event "Live Chess"]
[Site "Chess.com"]
[Date "2023.05.20"]
[Round "-"]
[White "rmethornhill"]
[Black "Tilbs_12"]
[Result "0-1"]
[WhiteElo "1174"]
[BlackElo "1562"]
[TimeControl "300"]
[EndTime "12:37:50 PDT"]
[Termination "Tilbs_12 won on time"]

1. d4 {[%clk 0:04:58.2]} 1... d5 {[%clk 0:04:58.6]} 2. c4 {[%clk 0:04:57.2]}
2... c6 {[%clk 0:04:57.6]} 3. Nf3 {[%clk 0:04:55.5]} 3... Nf6 {[%clk 0:04:56.6]}
4. Nc3 {[%clk 0:04:53.3]} 4... dxc4 {[%clk 0:04:55.7]} 5. Bg5 {[%clk 0:04:49.4]}
5... b5 {[%clk 0:04:52]} 6. e3 {[%clk 0:04:46.6]} 6... Bg4 {[%clk 0:04:46.9]} 7.
a4 {[%clk 0:04:41.5]} 7... b4 {[%clk 0:04:45.1]} 8. Na2 {[%clk 0:04:40.6]} 8...
a5 {[%clk 0:04:25.9]} 9. Bxc4 {[%clk 0:04:36.5]} 9... e6 {[%clk 0:04:25]} 10. h3
{[%clk 0:04:22.9]} 10... Bh5 {[%clk 0:04:23.5]} 11. Be2 {[%clk 0:04:22.2]} 11...
Nbd7 {[%clk 0:04:19.3]} 12. Rc1 {[%clk 0:04:18.9]} 12... c5 {[%clk 0:04:12.4]}
13. Bb5 {[%clk 0:04:11.4]} 13... Be7 {[%clk 0:03:51]} 14. Rxc5 {[%clk
0:04:04.7]} 14... Bxc5 {[%clk 0:03:45.5]} 15. dxc5 {[%clk 0:04:03.4]} 15... O-O
{[%clk 0:03:44]} 16. Bxd7 {[%clk 0:03:59.7]} 16... Qxd7 {[%clk 0:03:42.3]} 17.
Bxf6 {[%clk 0:03:57.5]} 17... Qxd1+ {[%clk 0:03:40.7]} 18. Kxd1 {[%clk
0:03:56.9]} 18... gxf6 {[%clk 0:03:39]} 19. Nc1 {[%clk 0:03:45.3]} 19... e5
{[%clk 0:03:35.5]} 20. g4 {[%clk 0:03:40.3]} 20... Bg6 {[%clk 0:03:33.7]} 21. g5
{[%clk 0:03:35.2]} 21... Be4 {[%clk 0:03:29.9]} 22. Ke2 {[%clk 0:03:31.2]} 22...
fxg5 {[%clk 0:03:22.7]} 23. Rg1 {[%clk 0:03:30.3]} 23... Bxf3+ {[%clk
0:03:16.2]} 24. Kxf3 {[%clk 0:03:28.5]} 24... h6 {[%clk 0:03:14.3]} 25. h4
{[%clk 0:03:25.5]} 25... f6 {[%clk 0:03:10.7]} 26. hxg5 {[%clk 0:03:22.7]} 26...
hxg5 {[%clk 0:03:09.6]} 27. Ne2 {[%clk 0:03:11.2]} 27... Rfc8 {[%clk 0:03:01.8]}
28. Rc1 {[%clk 0:03:09.4]} 28... Rc6 {[%clk 0:02:58.6]} 29. Ng3 {[%clk
0:03:01.4]} 29... Kg7 {[%clk 0:02:41]} 30. Nf5+ {[%clk 0:02:49.8]} 30... Kf7
{[%clk 0:02:32.9]} 31. Nd6+ {[%clk 0:02:47.4]} 31... Ke6 {[%clk 0:02:17.3]} 32.
Kg4 {[%clk 0:02:27.4]} 32... Rh8 {[%clk 0:02:11.8]} 33. Nf5 {[%clk 0:02:18.7]}
33... Rhc8 {[%clk 0:02:02]} 34. Rd1 {[%clk 0:02:03.2]} 34... Rxc5 {[%clk
0:01:26.4]} 35. Rd6+ {[%clk 0:02:01.3]} 35... Kf7 {[%clk 0:01:25.3]} 36. Rd7+
{[%clk 0:01:56.6]} 36... Kf8 {[%clk 0:01:22.4]} 37. Rd6 {[%clk 0:01:51.1]} 37...
R8c6 {[%clk 0:01:10.6]} 38. Rd8+ {[%clk 0:01:36.3]} 38... Kf7 {[%clk 0:01:09.5]}
39. Nd6+ {[%clk 0:01:33.8]} 39... Ke7 {[%clk 0:01:04.7]} 40. Nb7 {[%clk
0:01:32.9]} 40... Rc2 {[%clk 0:00:55.9]} 41. Rh8 {[%clk 0:01:07.8]} 41... Rc7
{[%clk 0:00:47.1]} 42. Rh7+ {[%clk 0:01:06.2]} 42... Ke6 {[%clk 0:00:45.4]} 43.
Rxc7 {[%clk 0:01:01.2]} 43... Rxc7 {[%clk 0:00:43.3]} 44. Nxa5 {[%clk
0:00:59.9]} 44... Rc2 {[%clk 0:00:41.1]} 45. b3 {[%clk 0:00:55]} 45... Rxf2
{[%clk 0:00:39.8]} 46. Nc4 {[%clk 0:00:53.4]} 46... Rg2+ {[%clk 0:00:37.7]} 47.
Kf3 {[%clk 0:00:51.8]} 47... Ra2 {[%clk 0:00:33.5]} 48. Kg4 {[%clk 0:00:49.8]}
48... Kf7 {[%clk 0:00:25.1]} 49. e4 {[%clk 0:00:45.1]} 49... Kg6 {[%clk
0:00:23.7]} 50. Nd6 {[%clk 0:00:34.7]} 50... Ra1 {[%clk 0:00:22.1]} 51. Nc4
{[%clk 0:00:32.9]} 51... Rg1+ {[%clk 0:00:20.5]} 52. Kf3 {[%clk 0:00:31.7]}
52... Kh5 {[%clk 0:00:19.8]} 53. a5 {[%clk 0:00:29.8]} 53... g4+ {[%clk
0:00:18.3]} 54. Kf2 {[%clk 0:00:28.6]} 54... Ra1 {[%clk 0:00:17.7]} 55. Kg3
{[%clk 0:00:23.5]} 55... Ra2 {[%clk 0:00:15.2]} 56. Ne3 {[%clk 0:00:13.4]} 56...
Rxa5 {[%clk 0:00:13.6]} 57. Nc4 {[%clk 0:00:12.8]} 57... Ra1 {[%clk 0:00:12.5]}
58. Nb6 {[%clk 0:00:09.5]} 58... Rg1+ {[%clk 0:00:10.7]} 59. Kf2 {[%clk
0:00:08.1]} 59... Rb1 {[%clk 0:00:10.4]} 60. Nd5 {[%clk 0:00:06.6]} 60... Rxb3
{[%clk 0:00:08.9]} 61. Nxf6+ {[%clk 0:00:06]} 61... Kh4 {[%clk 0:00:08.1]} 62.
Nd7 {[%clk 0:00:02]} 62... Rb2+ {[%clk 0:00:07.5]} 0-1